bitfinex-derivatives/quotes_SOLF0:USTF0_20250130
["timestamp","ask_amount","ask_price","bid_price","bid_amount"]
[1738268862176,11.33804619,240.06,240.05,123.9779844]
[1738268862481,11.33804619,240.06,240.05,117.2692844]
[1738268862678,11.33804619,240.06,240.05,110.9800844]
[1738268864382,11.33804619,240.06,240.03,0.02721298]
[1738268864581,7.17314619,240.04,240.03,0.02721298]
[1738268867884,7.17314619,240.04,239.98,4.1662]
[1738268868081,7.17314619,240.01,239.98,4.1662]
[1738268868282,7.17314619,240.03,239.94,7.17314619]
[1738268869184,7.17314619,240.03,240.01,4.1653]
[1738268869784,7.17314619,240.03,239.96,0.03003075]
[1738268869985,0.02912117,240.04,239.96,7.20317694]
[1738268870181,0.02912117,240.04,239.98,7.17314619]
[1738268870385,0.02912117,240.04,240.03,4.1652]
[1738268870888,7.17314619,240.09,240.07,4.1645]
[1738268871087,7.17314619,240.11,240.03,7.17314619]
[1738268871690,7.17314619,240.11,240.05,4.1648]
[1738268871890,7.17314619,240.11,240.01,7.17314619]
[1738268872090,0.02786849,240.1,240.06,0.03180276]
[1738268872585,0.02786849,240.1,240.07,4.1644]
[1738268872785,0.02786849,240.1,240.06,0.03180276]
[1738268873086,0.02786849,240.1,240.09,4.1642]
[1738268874490,47.36960927,240.15,240.07,7.17314619]
[1738268874892,47.36960927,240.15,240.07,8.57944619]
[1738268875091,47.36960927,240.15,240.12,4.1638]
[1738268875489,7.17314619,240.15,240.07,8.57944619]
[1738268875693,7.17314619,240.15,240.11,0.02804277]
[1738268876991,7.17314619,240.15,240.12,4.1635]
[1738268877795,7.17314619,240.15,240.12,5.6244]
[1738268878796,7.17314619,240.15,240.12,1.4609]
[1738268879495,0.03021022,240.16,240.12,1.4609]
[1738268879694,0.03021022,240.16,240.13,1.3961]
[1738268880797,0.03021022,240.16,240.14,4.1631]
[1738268881495,0.03021022,240.16,240.13,8.56924619]
[1738268881695,7.17314619,240.21,240.13,8.56924619]
[1738268882597,7.17314619,240.21,240.16,4.1628]
[1738268882803,0.03071215,240.19,240.13,8.56924619]
[1738268883103,7.20385834,240.19,240.16,0.03110793]
[1738268883303,4.1626,240.17,240.16,0.03110793]
[1738268883506,11.33574619,240.17,240.16,0.03110793]
[1738268887610,7.17314619,240.17,240.12,1.4609]
[1738268887906,4.1633,240.13,240.12,1.4609]
[1738268888906,7.17314619,240.14,240.1,0.03028123]
[1738268889108,11.33684619,240.11,240.1,0.03028123]
[1738268889799,0.03018112,240.14,240.1,0.03028123]
[1738268889999,7.17314619,240.24,240.12,7.17314619]
[1738268890300,82.38,240.3,240.06,1.3874]
[1738268890301,7.17314619,240.26,240.16,7.17314619]
[1738268890504,7.17314619,240.24,240.16,7.17314619]
[1738268890904,7.17314619,240.22,240.13,1.4262]
[1738268891102,7.17314619,240.2,240.18,0.0307588]
[1738268891505,4.1623,240.19,240.18,0.0307588]
[1738268896912,7.2051867,240.22,240.18,0.0307588]
[1738268897613,4.162,240.21,240.18,0.0307588]
[1738268899008,4.1622,240.2,240.18,0.0307588]
[1738268899313,0.03204051,240.22,240.18,0.0307588]
[1738268901116,4.19384051,240.22,240.18,0.0307588]
[1738268901313,0.03204051,240.22,240.18,0.0307588]
[1738268901508,0.03204051,240.22,240.18,7.20390499]
[1738268901713,0.03204051,240.22,240.19,4.1621]
[1738268902015,0.03204051,240.22,240.18,0.0307588]
[1738268902418,4.19394051,240.22,240.18,0.0307588]
[1738268903119,4.19394051,240.22,240.18,4.1932588]
[1738268904110,0.03204051,240.22,240.18,4.1932588]
[1738268904312,4.1623,240.19,240.18,0.0307588]
[1738268908121,7.17314619,240.2,240.12,1.3945]
[1738268908325,7.17314619,240.13,240.12,1.3945]
[1738268909124,11.33644619,240.13,240.12,1.3945]
[1738268909823,7.17314619,240.13,240.12,1.3945]
[1738268910123,7.17314619,240.15,240.12,1.3945]
[1738268910521,7.17314619,240.15,240.13,4.1633]
[1738268910722,7.17314619,240.15,240.12,1.3945]
[1738268912120,11.33624619,240.15,240.12,1.3945]
[1738268912428,7.17314619,240.15,240.12,1.3945]
[1738268912727,4.1632,240.14,240.12,1.3945]
[1738268912929,7.17314619,240.15,240.12,1.3945]
[1738268913227,11.33644619,240.13,240.12,1.3945]
[1738268916931,0.03124851,240.16,240.12,1.3945]
[1738268917431,7.17314619,240.13,240.12,1.3945]
[1738268918135,7.17314619,240.15,240.12,1.3945]
[1738268918432,7.17314619,240.15,240.13,4.1633]
[1738268919035,0.03124851,240.16,240.14,4.1632]
[1738268919235,0.03124851,240.16,240.12,8.56764619]
[1738268919537,0.03124851,240.16,240.14,7.17314619]
[1738268919732,0.03124851,240.16,240.15,4.163]
[1738268919929,0.03124851,240.16,240.12,8.56764619]
[1738268921134,0.03124851,240.16,240.14,4.163]
[1738268921537,0.03124851,240.16,240.12,8.56764619]
[1738268921732,0.03124851,240.16,240.15,4.163]
[1738268924037,40.1744107,240.3,240.15,217.32314619]
[1738268924337,7.17314619,240.36,240.27,7.17314619]
[1738268924640,7.17314619,240.34,240.28,5.5409]
[1738268925337,0.02719266,240.33,240.29,0.02863593]
[1738268925838,7.17314619,240.3,240.29,0.02863593]
[1738268926738,11.33354619,240.3,240.29,0.02863593]
[1738268927036,7.17314619,240.32,240.29,0.02863593]
[1738268927237,0.02719266,240.33,240.29,0.02863593]
[1738268928542,7.17314619,240.32,240.29,0.02863593]
[1738268929240,4.1604,240.3,240.29,0.02863593]
[1738268929939,0.02719266,240.33,240.3,4.1604]
[1738268930139,0.02719266,240.33,240.29,0.02863593]
[1738268930642,4.18709266,240.33,240.29,0.02863593]
[1738268931136,0.02719266,240.33,240.29,0.02863593]
[1738268932646,4.1603,240.31,240.29,0.02863593]
[1738268932842,7.17314619,240.32,240.29,0.02863593]
[1738268935143,4.1604,240.3,240.29,0.02863593]
[1738268936249,7.17314619,240.32,240.29,0.02863593]
[1738268936546,0.02719266,240.33,240.29,0.02863593]
[1738268938246,0.02719266,240.33,240.29,4.18913593]
[1738268938642,4.18719266,240.33,240.29,4.18913593]
[1738268939344,0.02719266,240.33,240.29,7.20178212]
[1738268939544,4.1587,240.4,240.31,7.17314619]
[1738268939740,7.17314619,240.39,240.31,7.17314619]
[1738268940151,4.1592,240.38,240.33,4.1598]
[1738268940748,4.1592,240.37,240.33,0.03105793]
[1738268941647,0.02943937,240.38,240.33,0.03105793]
[1738268941848,4.18853937,240.38,240.33,4.19075793]
[1738268943548,4.1592,240.37,240.33,4.19075793]
[1738268943852,7.17314619,240.37,240.33,0.03105793]
[1738268944449,4.1597,240.35,240.33,0.03105793]
[1738268945149,4.1597,240.34,240.33,0.03105793]
[1738268947454,4.1613,240.25,240.23,1.4038]
[1738268947654,7.17314619,240.25,240.23,1.4038]
[1738268947854,1.0884,240.37,240.23,1.4038]
[1738268947855,7.17314619,240.27,240.23,1.4038]
[1738268948152,1.2624,240.37,240.23,1.4038]
[1738268948153,7.17314619,240.25,240.23,1.4038]
[1738268948749,4.1615,240.24,240.23,1.4038]
[1738268949754,4.1615,240.24,240.22,0.02750007]
[1738268949755,4.1616,240.23,240.22,0.02750007]
[1738268949950,11.33474619,240.23,240.22,0.02750007]
[1738268956056,7.17314619,240.23,240.22,0.02750007]
[1738268956258,11.33444619,240.25,240.22,0.02750007]
[1738268957961,7.17314619,240.25,240.22,0.02750007]
[1738268958259,0.02726356,240.26,240.22,0.02750007]
[1738268960168,0.02726356,240.26,240.24,4.1614]
[1738268960857,0.02726356,240.26,240.22,4.18910007]
[1738268961358,0.02726356,240.26,240.22,0.02750007]
[1738268961563,4.1614,240.25,240.22,0.02750007]
[1738268962664,4.1616,240.23,240.22,0.02750007]
[1738268962867,11.33474619,240.23,240.22,0.02750007]
[1738268967367,11.33474619,240.23,240.22,7e-08]
[1738268967766,4.1628,240.16,240.15,143.81944453]
[1738268968068,7.17314619,240.17,240.13,143.81944453]
[1738268968569,11.33584619,240.17,240.13,143.81944453]
[1738268969069,7.20258374,240.17,240.13,143.84720573]
[1738268969670,11.36528374,240.17,240.13,143.84720573]
[1738268970272,11.36528374,240.17,240.13,148.01040573]
[1738268970471,11.36528374,240.17,240.13,4.1909612]
[1738268972070,11.36528374,240.17,240.13,0.0277612]
[1738268972875,4.1628,240.16,240.13,0.0277612]
[1738268973176,7.20258374,240.17,240.13,0.0277612]
[1738268973776,4.1631,240.15,240.13,0.0277612]
[1738268974074,7.20258374,240.17,240.13,0.0277612]
[1738268975174,4.1632,240.14,240.13,0.0277612]
[1738268993692,4.1644,240.08,240.06,1.3675]
[1738268993990,7.17314619,240.08,240.06,1.3675]
[1738268995290,11.33744619,240.08,240.06,1.3675]
[1738268996693,0.03177754,240.09,240.06,5.5321]
[1738268998196,0.03177754,240.09,240.07,4.1644]
[1738268999897,0.03177754,240.09,240.08,4.1643]
[1738269000298,0.03177754,240.09,240.06,1.3675]
[1738269000696,7.17314619,240.08,240.06,1.3675]
[1738269001000,4.1645,240.07,240.06,145.18694453]
[1738269001596,4.1645,240.07,240.06,143.81944453]
[1738269003304,4.1645,240.07,240.06,49.18203561]
[1738269003604,7.17314619,240.08,240.05,0.02696169]
[1738269003810,11.33774619,240.06,240.05,0.02696169]
[1738269004605,11.33774619,240.06,240.05,6.169e-05]
[1738269005602,11.33774619,240.06,239.99,50.55223561]
[1738269005603,4.1657,240.0,239.99,50.55223561]
[1738269005802,7.17314619,240.0,239.92,5.5643]
[1738269006101,7.17314619,239.96,239.93,1.3472]
[1738269007909,7.17314619,239.96,239.93,5.5141]
[1738269010409,0.03103,239.97,239.94,4.1667]
[1738269011006,0.03103,239.97,239.96,4.1664]
[1738269011203,4.1655,240.01,239.93,8.52034619]
[1738269011409,7.17314619,240.02,239.93,8.52034619]
[1738269011811,7.17314619,240.02,239.98,4.166]
[1738269012207,7.20138573,240.02,239.98,4.19801276]
[1738269012915,11.36658573,240.02,239.98,4.19801276]
[1738269014109,7.20138573,240.02,239.99,4.1657]
[1738269014714,0.02823954,240.02,239.99,4.1657]
[1738269015104,0.02823954,240.02,240.0,4.1655]
[1738269015515,0.02823954,240.02,239.98,0.03201276]
[1738269015911,7.17314619,240.06,239.98,0.03201276]
[1738269016112,7.17314619,240.09,240.02,7.17314619]
[1738269016414,7.17314619,240.11,240.03,2.7258]
[1738269016612,11.33684619,240.11,240.05,4.1646]
[1738269016914,0.03190106,240.1,240.06,0.03109115]
[1738269017416,0.03190106,240.1,240.07,4.1642]
[1738269021510,0.03190106,240.1,240.06,0.03109115]
[1738269021511,0.03190106,240.1,240.09,4.164]
[1738269021718,82.44,240.12,240.06,7.20423734]
[1738269022115,82.44,240.12,240.09,4.1639]
[1738269024218,86.6036,240.12,240.09,4.1639]
[1738269026019,82.44,240.12,240.09,4.1639]
[1738269026512,82.44,240.12,240.06,0.03109115]
[1738269026913,82.44,240.12,240.07,4.1643]
[1738269026914,4.1638,240.11,240.07,4.1643]
[1738269027117,7.17314619,240.09,240.06,0.03109115]
[1738269027320,7.17314619,240.07,240.06,0.03109115]
[1738269027513,11.33754619,240.07,240.06,0.03109115]
[1738269029225,7.17314619,240.07,240.06,0.03109115]
[1738269030119,11.33754619,240.07,240.06,0.03109115]
[1738269030514,7.17314619,240.07,240.03,1.3486]
[1738269030714,11.33804619,240.04,240.03,1.3486]
[1738269030921,7.17314619,240.04,239.96,5.4905]
[1738269031120,7.17314619,240.0,239.96,6.927]
[1738269031426,11.33874619,240.0,239.96,2.7607]
[1738269031618,7.17314619,240.0,239.96,2.7607]
[1738269031921,0.0280821,240.0,239.96,2.78920044]
[1738269032722,0.0280821,240.0,239.97,4.1661]
[1738269033022,7.20122829,240.0,239.96,2.78920044]
[1738269033323,7.20122829,240.0,239.96,6.95550044]
[1738269033527,7.20122829,240.0,239.96,5.63130044]
[1738269033725,11.36692829,240.0,239.96,1.46500044]
[1738269033922,7.20122829,240.0,239.96,1.46500044]
[1738269036024,0.0280821,240.0,239.96,8.63814663]
[1738269036528,0.0280821,240.0,239.99,4.1658]
[1738269040127,0.0280821,240.0,239.98,4.1659]
[1738269040329,7.17314619,240.04,239.96,8.63814663]
[1738269041028,4.1651,240.03,239.96,8.63814663]
[1738269041529,7.200206,240.02,239.96,1.46500044]
[1738269041932,11.365406,240.02,239.98,4.1658]
[1738269043230,7.200206,240.02,239.96,1.46500044]
[1738269043920,4.1657,240.0,239.96,5.63120044]
[1738269045331,4.1659,239.99,239.96,5.63120044]
[1738269046536,4.1661,239.97,239.96,1.46500044]
[1738269048739,11.33914619,239.98,239.96,1.46500044]
[1738269048944,7.17314619,239.98,239.96,0.02850044]
[1738269049234,7.17314619,239.98,239.89,1.4392]
[1738269049436,7.17314619,239.93,239.89,5.6067]
[1738269049632,7.17314619,239.93,239.89,1.4392]
[1738269050038,7.17314619,239.93,239.89,5.6067]
[1738269050440,7.20069763,239.93,239.89,1.46866649]
[1738269051242,0.02755144,239.93,239.92,4.167]
[1738269052536,7.20069763,239.93,239.9,4.1673]
[1738269052837,7.20069763,239.93,239.89,1.46866649]
[1738269053238,7.17314619,239.91,239.89,0.02946649]
[1738269053837,7.20069763,239.93,239.89,0.02946649]
[1738269054245,7.20069763,239.93,239.9,4.1672]
[1738269054440,0.02755144,239.93,239.9,7.17314619]
[1738269054746,0.02755144,239.93,239.92,7.17314619]
[1738269054944,0.02755144,239.93,239.92,11.34014619]
[1738269055244,7.17314619,240.0,239.92,7.17314619]
[1738269055445,11.33884619,240.0,239.92,7.17314619]
[1738269056044,1.093,240.05,239.9,1.3579]
[1738269056045,7.17314619,239.96,239.9,1.3579]
[1738269056248,7.17314619,239.92,239.87,3.93667835]
[1738269056448,7.17314619,239.92,239.91,0.02641665]
[1738269056649,11.34014619,239.92,239.91,0.02641665]
[1738269058747,15.425357,239.92,239.91,0.02641665]
[1738269060149,11.258357,239.92,239.86,1.4435]
[1738269060349,4.1681,239.86,239.8,5.531]
[1738269061053,11.258357,239.88,239.79,1.4411]
[1738269061354,11.258357,239.81,239.74,1.4007]
[1738269061745,11.258357,239.81,239.74,5.5708]
[1738269061746,15.427257,239.81,239.74,5.5708]
[1738269061953,15.427257,239.81,239.75,0.02714163]
[1738269061954,0.0272615,239.8,239.75,0.02714163]
[1738269062449,0.0272615,239.8,239.75,4.19704163]
[1738269062654,0.0272615,239.8,239.75,0.02714163]
[1738269063153,0.0272615,239.8,239.79,4.1692]
[1738269063966,0.0272615,239.8,239.76,4.1698]
[1738269064561,0.0272615,239.8,239.77,4.1696]
[1738269064762,0.0272615,239.8,239.75,0.02714163]
[1738269065058,0.0272615,239.8,239.77,4.1695]
[1738269065260,0.0272615,239.8,239.75,0.02714163]
[1738269066363,0.0272615,239.8,239.76,4.1696]
[1738269067665,0.0272615,239.8,239.75,0.02714163]
[1738269067864,0.0272615,239.8,239.77,4.1695]
[1738269068564,0.0272615,239.8,239.75,0.02714163]
[1738269068764,0.0272615,239.8,239.76,4.1697]
[1738269069865,0.0272615,239.8,239.75,0.02714163]
[1738269070468,0.0272615,239.8,239.76,4.1697]
[1738269072967,4.1963615,239.8,239.76,4.1697]
[1738269073367,4.1963615,239.8,239.75,0.02714163]
[1738269073368,0.0272615,239.8,239.75,0.02714163]
[1738269076266,4.1695,239.78,239.75,0.02714163]
[1738269078564,0.0272615,239.8,239.75,0.02714163]
[1738269078866,4.1696,239.77,239.75,0.02714163]
[1738269079467,0.0272615,239.8,239.75,0.02714163]
[1738269079670,4.1698,239.76,239.75,0.02714163]
[1738269080360,4.1705,239.72,239.67,1.3771]
[1738269080560,11.258357,239.72,239.67,1.3771]
[1738269081562,11.28737846,239.72,239.67,1.40661309]
[1738269081768,11.258357,239.69,239.67,0.02951309]
[1738269082272,4.1712,239.68,239.67,0.02951309]
[1738269082771,4.1716,239.66,239.6,4.1725]
[1738269082970,11.258357,239.65,239.56,1.3426]
[1738269083472,11.258357,239.62,239.56,1.3426]
[1738269084266,0.02972339,239.61,239.57,0.02827702]
[1738269085165,11.258357,239.68,239.57,0.02827702]
[1738269085468,4.1711,239.69,239.57,0.02827702]
[1738269086266,4.1711,239.69,239.62,4.1721]
[1738269086462,0.02703918,239.65,239.57,0.02827702]
[1738269086769,0.02703918,239.65,239.59,0.02874563]
[1738269088172,0.02703918,239.65,239.64,4.1719]
[1738269089773,4.1703,239.73,239.68,4.1711]
[1738269089975,4.1703,239.73,239.59,11.258357]
[1738269090172,4.1703,239.73,239.58,2.66]
[1738269090173,11.258357,239.76,239.62,11.258357]
[1738269090474,11.258357,239.76,239.72,4.1704]
[1738269090674,11.258357,239.76,239.62,10.86543579]
[1738269090871,1.0936,239.85,239.62,10.86543579]
[1738269090872,11.258357,239.78,239.67,0.02711273]
[1738269091073,0.02793158,239.71,239.62,11.258357]
[1738269091271,0.02793158,239.71,239.66,4.1715]
[1738269091472,0.02793158,239.71,239.64,0.02792771]
[1738269091473,0.02793158,239.71,239.67,1.438]
[1738269092675,0.02793158,239.71,239.7,4.1708]
[1738269094385,11.258357,239.81,239.67,1.438]
[1738269094573,11.258357,239.81,239.74,4.1701]
[1738269094879,11.258357,239.84,239.68,11.258357]
[1738269095079,11.258357,239.84,239.69,1.3567]
[1738269095279,4.1691,239.81,239.69,1.3567]
[1738269095479,11.258357,239.84,239.73,0.02936334]
[1738269095480,0.02702097,239.77,239.73,0.02936334]
[1738269095680,15.426757,239.84,239.79,4.1691]
[1738269095882,11.258357,239.88,239.72,1.4295]
[1738269096082,11.258357,239.91,239.74,11.258357]
[1738269096281,11.258357,239.94,239.77,11.258357]
[1738269096976,0.0291358,239.88,239.84,4.1682]
[1738269097476,0.0291358,239.88,239.83,0.02753131]
[1738269098584,0.0291358,239.88,239.84,4.1683]
[1738269098785,11.258357,239.94,239.83,0.02753131]
[1738269098982,11.258357,239.97,239.8,13.918357]
[1738269099585,4.1668,239.93,239.86,4.1679]
[1738269099777,11.258357,239.97,239.86,4.1679]
[1738269100182,4.1668,239.94,239.89,0.03116627]
[1738269100683,11.258357,239.97,239.89,0.03116627]
[1738269101686,4.1665,239.95,239.89,4.19856627]
[1738269102089,4.1665,239.95,239.9,4.1673]
[1738269104391,4.1665,239.95,239.9,5.5859]
[1738269105187,4.1661,239.98,239.9,1.4186]
[1738269105692,4.1661,239.98,239.93,4.1667]
[1738269106192,82.56,240.06,239.92,0.03173204]
[1738269106193,11.258357,240.03,239.92,0.03173204]
[1738269106392,11.258357,240.03,239.95,4.1664]
[1738269106793,4.1654,240.01,239.95,4.1664]
[1738269107188,93.818357,240.06,239.92,0.03173204]
[1738269107391,93.818357,240.06,239.96,4.1662]
[1738269107598,11.258357,240.0,239.91,1.372]
[1738269107797,11.258357,240.0,239.99,1.914e-05]
[1738269107992,11.258357,240.0,239.91,1.372]
[1738269108894,11.258357,240.0,239.93,0.02797272]
[1738269109094,82.56,240.06,239.93,0.02797272]
[1738269109095,4.1668,239.94,239.93,0.02797272]
[1738269111897,4.1668,239.94,239.88,3.55440097]
[1738269112594,4.1668,239.94,239.89,4.1675]
[1738269112995,4.19461815,239.94,239.89,4.19858751]
[1738269113195,4.19461815,239.94,239.89,0.03108751]
[1738269113695,4.19461815,239.94,239.89,4.19858751]
[1738269114898,4.1669,239.93,239.89,0.03108751]
[1738269115197,0.02781815,239.94,239.89,0.03108751]
[1738269116197,0.02781815,239.94,239.93,4.1668]
[1738269118598,11.258357,240.03,239.9,1.3587]
[1738269118803,97.983057,240.06,239.92,11.258357]
[1738269118994,86.7247,240.06,239.92,11.258357]
[1738269119197,86.7247,240.06,239.93,1.3237]
[1738269119701,4.1648,240.05,240.0,4.1655]
[1738269119900,0.02695279,240.02,240.0,4.1655]
[1738269120194,0.02695279,240.02,239.97,0.03133906]
[1738269120399,0.02695279,240.02,239.99,4.1656]
[1738269120698,0.02695279,240.02,239.97,0.03133906]
[1738269121297,82.56,240.06,239.97,0.03133906]
[1738269121497,82.56,240.06,239.98,11.258357]
[1738269121694,82.56,240.06,240.03,4.1651]
[1738269121993,1.726,240.18,239.95,11.258357]
[1738269122199,11.258357,240.09,239.93,1.3237]
[1738269122602,11.258357,240.09,239.99,0.03210603]
[1738269123102,4.1654,240.02,239.99,0.03210603]
[1738269123906,11.258357,240.06,239.99,0.03210603]
[1738269124104,11.258357,240.03,239.96,4.1662]
[1738269124304,11.258357,240.03,240.0,0.02702312]
[1738269124505,4.1654,240.01,240.0,2.312e-05]
[1738269125098,11.258357,240.03,239.91,4.1671]
[1738269125099,4.1663,239.96,239.91,4.1671]
[1738269126006,4.1663,239.96,239.92,4.1669]
[1738269126199,4.19550263,239.96,239.92,4.1669]
[1738269126504,0.02920263,239.96,239.91,0.0309392]
[1738269127006,4.167,239.92,239.91,0.0309392]
[1738269127806,4.1669,239.93,239.91,0.0309392]
[1738269128601,4.1667,239.94,239.91,0.0309392]
[1738269131206,4.167,239.92,239.91,0.0309392]
[1738269133205,4.1675,239.89,239.84,5.5098]
[1738269133908,11.258357,239.93,239.84,1.3414]
[1738269134108,4.1682,239.86,239.84,1.3414]
[1738269136007,0.02830898,239.87,239.84,1.3414]
[1738269136211,0.02830898,239.87,239.86,4.1682]
[1738269136511,0.02830898,239.87,239.83,0.02986929]
[1738269137610,4.19630898,239.87,239.83,0.02986929]
[1738269138507,4.1681,239.86,239.83,0.02986929]
[1738269138811,0.02830898,239.87,239.83,0.02986929]
[1738269139012,4.19620898,239.87,239.83,0.02986929]
[1738269140314,4.19620898,239.87,239.83,4.19856929]
[1738269142915,0.02830898,239.87,239.83,4.19856929]
[1738269144223,4.19630898,239.87,239.83,4.19856929]
[1738269145723,4.19630898,239.87,239.83,0.02986929]
[1738269146722,7.20618255,239.86,239.83,0.02986929]
[1738269147922,11.37438255,239.86,239.83,0.02986929]
[1738269149121,11.37468255,239.84,239.83,0.02986929]
[1738269153226,7.20618255,239.84,239.71,1.4312]
[1738269153422,7.20618255,239.74,239.69,13.61718868]
[1738269153726,7.20618255,239.72,239.69,13.61718868]
[1738269154020,7.20618255,239.74,239.69,9.67827125]
[1738269154227,7.20618255,239.74,239.69,1.438]
[1738269154430,7.20618255,239.74,239.7,4.1709]
[1738269154623,0.02888851,239.74,239.7,4.1709]
[1738269155024,0.02888851,239.74,239.69,1.46562002]
[1738269155224,11.27085477,239.84,239.71,11.27085477]
[1738269155524,11.27085477,239.87,239.71,11.27085477]
[1738269155725,4.1685,239.84,239.79,4.1693]
[1738269156025,11.27085477,239.87,239.72,1.4531]
[1738269156226,4.1684,239.85,239.72,1.4531]
[1738269156423,0.02693758,239.82,239.77,0.03020901]
[1738269156827,0.02693758,239.82,239.79,4.1692]
[1738269157031,0.02693758,239.82,239.77,0.03020901]
[1738269157421,0.02693758,239.82,239.79,4.1692]
[1738269159131,0.02693758,239.82,239.81,4.169]
[1738269168338,11.27085477,239.94,239.87,4.168]
[1738269168631,11.27085477,239.94,239.78,12.71535477]
[1738269169135,4.167,239.93,239.88,4.1677]
[1738269169435,4.1945591,239.93,239.88,4.19669299]
[1738269170338,0.0275591,239.93,239.88,0.02899299]
[1738269171341,0.0275591,239.93,239.89,4.1675]
[1738269171541,0.0275591,239.93,239.88,0.02899299]
[1738269172033,4.1675,239.9,239.88,0.02899299]
[1738269172234,0.0275591,239.93,239.88,0.02899299]
[1738269173433,4.1674,239.91,239.88,0.02899299]
[1738269174242,11.27085477,239.91,239.88,0.02899299]
[1738269174640,7.20586951,239.89,239.88,0.02899299]
[1738269175043,11.37356951,239.89,239.88,0.02899299]
[1738269176138,11.37356951,239.89,239.84,4.15631043]
[1738269177045,7.20586951,239.89,239.84,4.15631043]
[1738269177246,7.20586951,239.89,239.84,0.0311184]
[1738269177446,7.20586951,239.85,239.84,0.0311184]
[1738269178538,11.37416951,239.85,239.84,0.0311184]
[1738269181948,7.20586951,239.85,239.84,0.0311184]
[1738269183544,7.23661579,239.87,239.84,0.0311184]
[1738269184247,11.37416951,239.85,239.84,0.0311184]
[1738269188456,11.37416951,239.85,239.76,1.3935]
[1738269188457,4.1694,239.79,239.7,7.20586951]
[1738269188651,7.20586951,239.77,239.71,1.3618]
[1738269188850,7.20586951,239.75,239.71,5.5326]
[1738269189055,7.20586951,239.75,239.71,1.3618]
[1738269189653,7.20586951,239.73,239.71,1.39353398]
[1738269190255,7.20586951,239.73,239.71,0.03173398]
[1738269191157,4.1706,239.72,239.71,0.03173398]
[1738269192560,11.37636951,239.73,239.71,0.03173398]
[1738269195960,4.1706,239.72,239.71,0.03173398]
[1738269196953,7.20586951,239.73,239.71,0.03173398]
[1738269197958,7.20586951,239.73,239.7,4.15746743]
[1738269200755,7.20586951,239.73,239.71,4.1708]
[1738269200960,0.03146632,239.75,239.69,0.0263066]
[1738269201564,0.03146632,239.75,239.7,7.20586951]
[1738269201759,0.03146632,239.75,239.7,8.53286951]
[1738269201953,0.03146632,239.75,239.71,4.1707]
[1738269202158,0.03146632,239.75,239.7,8.53286951]
[1738269202761,0.03146632,239.75,239.74,4.1703]
[1738269204059,7.20586951,239.8,239.7,1.327]
[1738269204358,4.1693,239.81,239.78,4.1698]
[1738269205058,4.1693,239.81,239.76,4.1699]
[1738269205263,4.1693,239.81,239.77,0.03076971]
[1738269205460,11.40493034,239.82,239.77,0.03076971]
[1738269205858,7.23613034,239.82,239.77,4.20026971]
[1738269206065,0.03026083,239.82,239.77,0.03076971]
[1738269206271,7.20586951,239.91,239.8,7.20586951]
[1738269206459,7.20586951,239.93,239.85,7.20586951]
[1738269206663,4.1672,239.92,239.85,7.20586951]
[1738269206861,4.1672,239.92,239.86,1.33]
[1738269207366,0.02962151,239.91,239.87,0.02866813]
[1738269208056,0.02962151,239.91,239.87,7.23453764]
[1738269208256,7.20586951,239.96,239.87,7.23453764]
[1738269208456,7.20586951,239.96,239.87,8.64163764]
[1738269208665,7.20586951,239.96,239.89,4.1675]
[1738269208966,7.20586951,239.96,239.87,8.64163764]
[1738269209568,0.02895295,239.94,239.91,4.1672]
[1738269212463,7.23482246,239.94,239.87,1.43576813]
[1738269212768,7.20586951,239.9,239.87,1.43576813]
[1738269214067,7.20586951,239.9,239.87,5.60366813]
[1738269214572,7.20586951,239.9,239.87,0.02866813]
[1738269214871,7.20586951,239.92,239.87,0.02866813]
[1738269215070,7.23482246,239.94,239.87,0.02866813]
[1738269215472,7.23482246,239.94,239.91,4.1672]
[1738269215971,7.23482246,239.94,239.92,4.1671]
[1738269216571,7.23482246,239.94,239.87,7.23453764]
[1738269216771,0.02895295,239.94,239.93,4.1669]
[1738269219170,0.02895295,239.94,239.89,5.45402318]
[1738269220075,0.02895295,239.94,239.93,4.1669]
[1738269221273,0.02895295,239.94,239.91,4.1671]
[1738269221574,0.02895295,239.94,239.89,5.45402318]
[1738269222173,0.02895295,239.94,239.93,4.1669]
[1738269222369,7.20586951,239.98,239.91,7.20586951]
[1738269222774,11.37186951,239.98,239.91,7.20586951]
[1738269223373,11.37186951,239.98,239.92,0.03026731]
[1738269224079,82.5,239.99,239.98,4.166]
[1738269226175,82.5,239.99,239.96,1.3593]
[1738269226579,7.20586951,239.98,239.96,1.3593]
[1738269227681,4.1664,239.96,239.93,4.1669]